[Event "45th FIDE Olympiad 2024"]
[Site "Budapest"]
[Date "2024.09.16"]
[Round "6.133"]
[White "Bagheri, Amir"]
[Black "Galaviz Medina, Sion Radamantys"]
[Result "0-1"]
[ECO "D02"]
[WhiteElo "2372"]
[BlackElo "2488"]
[Annotator "TA"]
[PlyCount "102"]
[EventDate "2024.09.05"]
[EventType "team-tourn"]
[EventCountry "HUN"]
[SourceTitle "playchess.com"]
[Source "ChessBase"]
[SourceQuality "1"]
[WhiteTeam "Monaco"]
[BlackTeam "Mexico"]
[WhiteTeamCountry "MNC"]
[BlackTeamCountry "MEX"]
[TimeControl "40/5400+30:1800+30"]

{[%evp 9,102,14,6,0,0,0,0,-2,14,25,45,14,0,-8,-16,-61,-2,-2,0,-8,0,0,0,-56,-64,-63,-27,-80,-79,-128,-126,-184,-103,-112,-105,-141,-114,-112,-47,-65,-68,-51,-66,-185,-93,-120,-77,-88,-89,-102,-105,-118,-22,-22,-17,-34,-24,-402,0,0,0,-931,-951,-918,-925,-1599,-1456,-1088,-972,-972,-950,-834,-403,-572,-544,-549,-560,-567,-617,-625,-594,-652,-636,-1490,-778,-3035,-2645,-12849,-12769,-29937,-12848,-12842,-12837,-5118,-5097]} 1. d4 Nf6 2. Nf3 e6 3. Bf4 c5 4. e3 d5 5. Nbd2 Nc6 6. Bb5 Bd6 7. dxc5 Bxc5 8. c4 {The position is equal.} O-O 9. O-O a6 10. Ba4 Nb4 11. Nb3 Be7 12. c5 Ne4 (12... Bd7 $15 13. Bxd7 Nxd7) 13. a3 $11 Nc6 14. Rc1 Bd7 15. Nfd2 g5 16. Bg3 ({White should try} 16. Nxe4 $11 gxf4 17. Bxc6 Bxc6 18. Nc3) 16... Nxg3 $15 17. hxg3 Bf6 18. Qc2 (18. Rb1 $11) 18... Bg7 $17 19. Qb1 (19. Rfe1 $142) 19... f5 20. Nf3 (20. Qc2 $17) 20... Qf6 (20... g4 $19 21. Ne1 Qe7) 21. Rfd1 Rad8 (21... Qxb2 $6 22. Na5 $11) 22. Rd2 Be8 23. Qc2 Bh5 (23... e5 $17 24. Bxc6 bxc6 (24... Bxc6 25. Na5 $17)) 24. Bxc6 bxc6 25. Na5 Rc8 (25... f4 {keeps more tension.} 26. Nd4 fxe3 27. fxe3 Qe5) 26. Nb7 (26. Nd4 $15) 26... Rb8 (26... f4 $19 27. gxf4 gxf4) 27. Na5 Be8 {[%cal Og5g4]} (27... Qxb2 $2 28. Nxc6 Rb7 29. Nxg5 $18) (27... Rxb2 $6 28. Qxb2 Qxb2 29. Rxb2 Bxb2 30. Rb1 Bxa3 31. Nxg5 $11) 28. b4 e5 29. Qd1 h5 30. Qe2 {[#]} g4 (30... Ra8 $1 $17 {With the idea ...Ra7.} 31. Nb7 h4 32. gxh4 Bh5) 31. Nh4 $11 Bh6 $36 {[%mdl 2048] White is under pressure.} (31... f4 {is more complex.} 32. exf4 exf4 33. Qxa6 fxg3 34. fxg3 Bh6) 32. Qxa6 {[%cal Oh4f5] Threatens to win with Nxf5!} f4 33. Re1 {[%mdl 8192]} (33. exf4 $11 {and White is okay.} exf4 34. Qd3) 33... Bg5 $2 (33... fxg3 $19 34. fxg3 Bg5) 34. exf4 exf4 (34... Bxh4 $2 {perishes.} 35. Rxe5 (35. gxh4 Qxf4 36. Re3 Qf6 $16) 35... Bd7 36. gxh4 $18) 35. Rde2 $2 {[%mdl 8192] Black continues to play with concentration.} (35. Qd3 $11) 35... fxg3 $19 36. fxg3 Bxh4 37. gxh4 Qxh4 38. Rf1 Rxf1+ 39. Kxf1 g3 {[%cal Rh4h1] [#]} 40. Ke1 Qf4 (40... Qf6 $142 41. Qd3 Bg6) 41. Nb3 (41. Qd3 {was worth a try.} Qc1+ 42. Qd1 Qxa3 43. Qb3 Qc1+ (43... Qxb4+ $2 {loses.} 44. Qxb4 Rxb4 45. Rxe8+ Kf7 46. Re2 $16) 44. Qd1 Qc3+ 45. Qd2 Qa1+ (45... Qxb4 46. Qxb4 Rxb4 47. Rxe8+ Kf7 48. Re7+ Kf6 49. Nxc6 $18) 46. Qd1) 41... h4 42. Qd3 Bh5 43. Qe3 Rf8 44. Qxf4 Rxf4 {[%mdl 4096] Endgame. KRB-KRN} 45. Re5 Bg4 {...h3 would now be deadly.} 46. Re3 Rf2 47. Re5 Kf7 48. Rg5 Rf4 {( -> ...h3)} 49. Nc1 Re4+ 50. Kd2 h3 51. gxh3 g2 {Weighted Error Value: White=1.01/Black=0.47.  Loses game:     	White=2     	---        Missed win:     	---       	Black=1      Mistake:       	White=5     	Black=5      Inaccurate:     	White=4     	Black=2      OK:         	White=9     	Black=13     Best:        	White=3     	Black=3} 0-1

[Event "45th FIDE Olympiad 2024"]
[Site "Budapest"]
[Date "2024.09.16"]
[Round "6.134"]
[White "Hernandez Guerrero, Gilberto"]
[Black "Efimov, Igor"]
[Result "0-1"]
[ECO "C13"]
[WhiteElo "2482"]
[BlackElo "2338"]
[Annotator "TA"]
[PlyCount "78"]
[EventDate "2024.09.05"]
[EventType "team-tourn"]
[EventCountry "HUN"]
[SourceTitle "playchess.com"]
[Source "ChessBase"]
[SourceQuality "1"]
[WhiteTeam "Mexico"]
[BlackTeam "Monaco"]
[WhiteTeamCountry "MEX"]
[BlackTeamCountry "MNC"]
[TimeControl "40/5400+30:1800+30"]

{[%evp 14,78,21,0,40,22,58,39,42,41,60,45,66,73,93,0,12,6,25,0,16,0,18,-125,-102,-117,-119,-90,0,0,0,-75,-71,-145,-152,-143,-153,-162,-109,-84,-64,-85,-95,-99,-82,-165,-91,-116,-100,-212,-191,-215,-206,-454,-461,-470,-476,-518,-512,-551,-193,-1236,-1213,-1261,-1193,-1218,-1225]} 1. e4 e6 2. d4 d5 3. Nc3 Nf6 4. Bg5 dxe4 5. Nxe4 Be7 6. Bxf6 gxf6 7. Nf3 a6 8. Bd3 b5 9. Qe2 Nd7 {Against Nc5} 10. a4 Bb7 {White is slightly better.} 11. O-O b4 12. Rfe1 Nf8 13. c4 Ng6 14. Qe3 ({White should try} 14. d5 $16) 14... f5 $11 15. Ned2 {[%cal Od4d5]} O-O 16. Nb3 Bf6 17. Bf1 c5 18. dxc5 (18. d5 $1 $11 {keeps the balance.}) 18... Bxb2 $17 19. Rad1 Qc7 20. Rd6 Bc6 (20... Bc3 $17 {[%cal Ob7f3] ...Bxf3! is the strong threat.} 21. Red1 Bc6) 21. Ng5 $11 {And now Qh3 would win.} Rfe8 {[%cal Ob2f6]} (21... Bxa4 $2 {too greedy.} 22. Qh3 f6 23. Nxe6 $18) 22. Qh3 (22. Nd4 $1 $11 Bxa4 23. Qh3) 22... Nf8 $17 23. Re3 (23. a5 $142) 23... Bg7 {This pair of bishops is nice.} 24. a5 Ba4 $1 25. Rb6 Bxb3 (25... Rab8 $1 $19 26. Qh4 Red8) 26. Rxb3 Qxc5 27. R6xb4 h6 (27... Qxa5 $2 {is the wrong capture.} 28. Rb7 Qd8 29. Nxf7 $18) 28. Nf3 Qxa5 {Black has more active pieces.} 29. Qh5 (29. Rb7 $17) 29... Ng6 ({Black should play} 29... Nh7 $1 $19 30. Rb7 Rf8) 30. Rb7 Qa1 31. g4 (31. Nh4 $17 Ne7 32. g4) 31... fxg4 $19 32. Qxg4 {[#]} a5 $1 {Hoping for ...a4.} 33. Nh4 $2 (33. Rb1 Qf6 34. R1b2) 33... Nxh4 34. Qxh4 a4 35. Rg3 {[#]} a3 $1 {Strongly threatening ...a2.} 36. Qxh6 a2 $2 (36... Qe5 {[%cal Oe5g3] White must now prevent ...Qxg3+!} 37. Qh4 a2) 37. Qh5 $2 (37. Qf4 Rf8 38. Rb5) 37... Qf6 {Black is clearly winning.} 38. Bd3 a1=Q+ (38... a1=B $2 {loses.} 39. Bh7+ Kf8 40. Rf3 $18) 39. Kg2 Qae5 {Weighted Error Value: White=0.53/Black=0.34.  Mistake:       	White=8     	Black=4      Inaccurate:     	---       	Black=1      OK:         	White=8     	Black=10     Best:        	---       	Black=5      Strong:       	---       	Black=2} 0-1

[Event "45th FIDE Olympiad 2024"]
[Site "Budapest"]
[Date "2024.09.16"]
[Round "6.135"]
[White "Levacic, Damir"]
[Black "Ibarra Chami, Luis Fernando"]
[Result "1/2-1/2"]
[ECO "E40"]
[WhiteElo "2097"]
[BlackElo "2427"]
[Annotator "TA"]
[PlyCount "136"]
[EventDate "2024.09.05"]
[EventType "team-tourn"]
[EventCountry "HUN"]
[SourceTitle "playchess.com"]
[Source "ChessBase"]
[SourceQuality "1"]
[WhiteTeam "Monaco"]
[BlackTeam "Mexico"]
[WhiteTeamCountry "MNC"]
[BlackTeamCountry "MEX"]
[TimeControl "40/5400+30:1800+30"]

{[%evp 44,136,-32,-50,-58,-60,-61,-105,-112,-121,-137,-125,-133,-122,-124,-185,-177,-172,-179,-183,-189,-188,-179,-193,-191,-193,-172,-202,-183,-150,-12,-8,-16,-15,-19,-17,-13,-15,-12,-22,-26,-26,-40,-40,-39,-36,-26,-39,-40,-40,-40,-40,-37,-41,-41,-70,-46,-66,0,0,0,0,0,0,74,79,94,106,221,232,355,340,329,332,329,307,240,69,85,36,36,36,36,36,43,0,0,0,108,0,0,0,62,0,0]} 1. d4 d5 2. c4 e6 3. Nc3 Bb4 4. a3 Bxc3+ 5. bxc3 Nf6 6. e3 c6 $1 {[%mdl 4] is recently more successful than 6...0-0. E40: Nimzo-Indian: Rubinstein (4 e3): Unusual Black 4th moves.} 7. Qc2 O-O 8. Nf3 b6 9. cxd5 cxd5 10. Bd3 Ba6 11. Bxa6 $146 ({Predecessor:} 11. O-O Qc8 12. a4 Bxd3 13. Qxd3 Nc6 14. Ba3 Re8 15. Nd2 Na5 16. Bb4 Nc4 17. Nxc4 dxc4 {½-½ Hartge,G (2093)-Schuetze,N (2295) Sachsen-Anhalt-ch 27th 2017 (7.1)}) 11... Nxa6 12. Qd3 Qc7 13. Bd2 Nb8 14. O-O Nbd7 15. Rfc1 Rfc8 16. a4 a6 17. Be1 Ne8 18. Nd2 Nd6 19. f3 Nc4 20. Bg3 Qb7 21. Nb3 Qc6 22. Ra2 h6 23. Re1 b5 24. a5 Nd6 25. Bxd6 Qxd6 26. Qd2 Rc4 27. Nc1 Qc7 28. Ne2 Ra4 29. Rea1 (29. Rxa4 $17 {might work better.} bxa4 30. c4) 29... Qxa5 $19 30. Rxa4 bxa4 31. Qa2 Nb6 32. Kf2 Re8 33. Qa3 Qb5 34. Ra2 Qd3 35. Nf4 Qd1 36. Qb4 Nc4 (36... Rb8 $17 {...Nd7 is the strong threat.} 37. h3 Qb3) 37. Qxa4 $11 Qxa4 38. Rxa4 a5 39. e4 g5 40. Nh5 Ra8 41. Ke2 Kf8 42. exd5 exd5 43. Nf6 Nb6 44. Ra2 a4 45. Kd3 Ke7 46. Ng4 h5 47. Ne3 Kd6 48. g3 Kc6 49. Nc2 Re8 50. Nb4+ Kb5 ({Black should play} 50... Kd6 $15 51. h4 gxh4 52. gxh4 Nc4) 51. Ra1 $11 Re6 52. Nxd5 Nxd5 53. c4+ Ka5 (53... Kb4 $1 $11 {remains equal.} 54. cxd5 (54. Rb1+ Ka5 $11) 54... Rb6) 54. cxd5 $16 Re8 55. d6 Rd8 {[#]} (55... Kb5 $16 {is a better defense.}) 56. Kc4 $1 $18 Rxd6 57. Kc5 Rd8 58. d5 Rc8+ 59. Kd6 Rc3 60. Ke7 $2 (60. Kd7 $18) 60... Re3+ $1 $14 (60... Rxf3 $2 61. Rd1 (61. d6 Re3+ 62. Kxf7 Rd3 $16) 61... Re3+ 62. Kxf7 Rf3+ 63. Kg8 $18) 61. Kd7 ({Better is} 61. Kxf7 $16 {Rd1 would now be deadly.} Rxf3+ 62. Ke6 Re3+ 63. Kf5) 61... a3 $14 ({Much weaker is} 61... Rxf3 62. Rd1 Kb6 63. d6 $16) 62. d6 Kb4 (62... Rxf3 $2 63. Rd1 $18) 63. Kc7 Rc3+ 64. Kb7 ({White should try} 64. Kd8 $14 Kb3 65. d7) 64... Rd3 $1 $16 (64... Rxf3 $2 65. Rd1 Re3 66. d7 $18) 65. Kc7 Rc3+ {[#]} 66. Kb7 (66. Kd8 $1 $16) 66... Rd3 $1 $14 (66... Rxf3 $2 {loses.} 67. Rd1 Re3 68. d7 $18) 67. Kc7 Rc3+ 68. Kb7 (68. Kd8 $1 $14) 68... Rd3 $1 (68... Rxf3 $2 {is the wrong capture.} 69. Rd1 Re3 70. d7 $18) 1/2-1/2

[Event "45th FIDE Olympiad 2024"]
[Site "Budapest"]
[Date "2024.09.16"]
[Round "6.136"]
[White "Palma Villanueva, Miguel Tadeo"]
[Black "Van Hoolandt, Patrick"]
[Result "1-0"]
[ECO "C78"]
[WhiteElo "2266"]
[BlackElo "2036"]
[Annotator "TA"]
[PlyCount "61"]
[EventDate "2024.09.05"]
[EventType "team-tourn"]
[EventCountry "HUN"]
[SourceTitle "playchess.com"]
[Source "ChessBase"]
[SourceQuality "1"]
[WhiteTeam "Mexico"]
[BlackTeam "Monaco"]
[WhiteTeamCountry "MEX"]
[BlackTeamCountry "MNC"]
[TimeControl "40/5400+30:1800+30"]

{[%evp 17,61,83,68,75,49,32,25,27,35,41,40,55,117,105,111,106,101,111,99,109,235,227,269,265,281,285,343,343,349,345,360,345,377,372,629,609,626,627,738,712,871,863,860,729,870,773]} 1. e4 e5 2. Nf3 Nc6 3. Bb5 a6 4. Ba4 Nf6 5. O-O b5 6. Bb3 Bc5 7. c3 d6 8. d4 exd4 9. cxd4 Bb6 10. h3 {Dodges Bg4} h6 {[%cal Oe8g8]} 11. e5 dxe5 12. dxe5 {White has an edge.} Qxd1 13. Rxd1 Ng8 14. Nc3 Ra7 (14... Nge7 $14) 15. Nd5 $16 Nge7 16. Nxb6 cxb6 17. Be3 {[%cal Oa1c1]} Rb7 18. Rd6 {Hoping for Rc1. White has more active pieces.} Bd7 {[#] This move loses the game for Black.} (18... O-O $16) 19. Rc1 $1 $18 O-O {[%cal Be8g8,Bg8f8,Bf8f7,Bf7g7,Bg7h7][%mdl 32] [#]} 20. e6 $1 Be8 21. exf7+ Rxf7 22. g4 ({Don't do} 22. Bxf7+ Kxf7 23. Nd4 Nb4 $18) 22... Kf8 23. Bxf7 Kxf7 24. Nd4 Ne5 25. Ne6 {Nd8+ is the strong threat.} Rb8 {[#]} (25... Rd7) 26. Nxg7 $1 {[%mdl 512] White is clearly winning.} Kxg7 27. Bd4 (27. Bxh6+ Kf7 28. Rc7 N5g6) (27. Rxb6 Rxb6 28. Bxb6 N7c6 $11) (27. Rxh6 N7c6 28. g5 Bg6 $18) 27... Rb7 28. Bxe5+ Kh7 29. Rd8 Bf7 30. b3 Bd5 31. Rc7 {Weighted Error Value: White=0.03 (flawless) /Black=0.43.  Mistake:       	---       	Black=3      OK:         	White=8     	Black=4      Best:        	White=1     	---        Strong:       	White=1     	---} 1-0

[Event "45th FIDE Olympiad 2024"]
[Site "Budapest"]
[Date "2024.09.16"]
[Round "6.137"]
[White "Khusenkhojaev, Mustafokhuja"]
[Black "Galego, Luis"]
[Result "1-0"]
[ECO "E11"]
[WhiteElo "2283"]
[BlackElo "2444"]
[Annotator "TA"]
[PlyCount "57"]
[EventDate "2024.09.05"]
[EventType "team-tourn"]
[EventCountry "HUN"]
[SourceTitle "playchess.com"]
[Source "ChessBase"]
[SourceQuality "1"]
[WhiteTeam "Tajikistan"]
[BlackTeam "Portugal"]
[WhiteTeamCountry "TJK"]
[BlackTeamCountry "POR"]
[TimeControl "40/5400+30:1800+30"]

{[%evp 14,57,31,28,39,41,50,42,46,47,50,47,52,56,59,55,75,53,62,31,28,32,37,22,15,49,24,44,100,90,510,12,509,508,504,59,59,52,53,70,73,83,83,0,1665,111]} 1. d4 Nf6 2. c4 e6 3. g3 Bb4+ 4. Bd2 Bxd2+ 5. Qxd2 O-O 6. Bg2 d5 7. Nf3 Qe7 8. O-O c5 9. cxd5 exd5 10. dxc5 Qxc5 {White is slightly better.} 11. Nc3 Nc6 12. Rac1 Be6 13. Rfd1 Qa5 14. Nd4 {Nxc6 would now be deadly.} Rfd8 15. Nxc6 bxc6 16. Ne4 Qxa2 17. Nxf6+ (17. Rxc6 $2 Nxe4 18. Bxe4 Qa4 19. Rxe6 fxe6 $19) 17... gxf6 18. Qd4 Rab8 19. Qxf6 Qxb2 20. Qg5+ Kh8 (20... Qg7 $14 21. Qf4 Qg4) 21. Rxc6 $16 Qxe2 $2 {[%mdl 8192]} (21... a5 $16) 22. Qf6+ $1 $18 Kg8 23. Bf3 Qb2 {[#]} 24. Rd4 $2 (24. Rxe6 $1 $18 {Black must now prevent Re5.} Qxf6 (24... fxe6 $2 25. Rd4 $18) 25. Rxf6) 24... Bh3 $1 $14 25. Bg4 $40 {[%mdl 1152] White has compensation. White has some attack. Some like it hot} (25. Bxd5 $2 Qb1+) 25... Qa1+ 26. Bd1 Qb1 $1 27. Qg5+ Kh8 {[#]} 28. Rc7 {White has more active pieces.} (28. Rxd5 $2 {gets mated.} Qxd1+ 29. Rxd1 Rxd1#) (28. Rh6 $1 $16 Bf5 29. Qf6+ Kg8 30. Rh5) 28... Be6 $2 {[%mdl 8192]} (28... Qg6 $11 29. Qxg6 (29. Rxd5 {is a self mate.} Qxg5 30. Rxf7 Qxd5) 29... fxg6) 29. Qf6+ {Weighted Error Value: White=0.26 (precise) /Black=0.44.  Loses game:     	---       	Black=3      Missed win:     	White=1     	---        Mistake:       	White=1     	Black=1      Inaccurate:     	White=1     	---        OK:         	White=11    	Black=2      Best:        	White=4     	Black=4      Strong:       	White=1     	Black=2} ({Not} 29. Rxa7 Qg6 30. Qe5+ Qg7 $14) 1-0

[Event "45th FIDE Olympiad 2024"]
[Site "Budapest"]
[Date "2024.09.16"]
[Round "6.138"]
[White "Pereira, Ruben"]
[Black "Karimov, Alisher"]
[Result "1/2-1/2"]
[ECO "B23"]
[WhiteElo "2457"]
[BlackElo "2240"]
[Annotator "TA"]
[PlyCount "103"]
[EventDate "2024.09.05"]
[EventType "team-tourn"]
[EventCountry "HUN"]
[SourceTitle "playchess.com"]
[Source "ChessBase"]
[SourceQuality "1"]
[WhiteTeam "Portugal"]
[BlackTeam "Tajikistan"]
[WhiteTeamCountry "POR"]
[BlackTeamCountry "TJK"]
[TimeControl "40/5400+30:1800+30"]

{[%evp 11,103,13,14,15,27,16,19,9,14,13,18,18,26,14,20,15,34,13,75,80,177,0,14,22,14,10,4,-27,-30,-18,-22,-24,0,0,21,21,22,18,18,20,22,6,12,12,70,71,75,78,71,0,0,0,0,0,0,0,41,0,63,64,72,83,83,33,25,29,26,29,74,35,98,52,92,93,135,50,106,6,8,12,362,445,417,0,0,-10,-10,-26,0,0,0,0,0,0]} 1. e4 c5 2. Nc3 e6 3. Nge2 Nc6 4. g3 d5 5. exd5 exd5 6. d4 Bg4 7. Bg2 Nxd4 8. h3 Bf3 9. Kf1 Qf6 10. Qd3 Bxg2+ (10... Bxe2+ {simplifies} 11. Nxe2 O-O-O 12. Nxd4 Qxd4 13. Qxd4 cxd4 14. h4 Ne7) 11. Kxg2 Nxe2 12. Qxe2+ Ne7 $1 (12... Qe6 13. Re1 Qxe2 14. Rxe2+ Kd7 15. Nxd5 $16) 13. Nb5 {[%mdl 1024] White has compensation.} Kd7 {Against Nc7} 14. Re1 {Threatens to win with Qg4+.} a6 (14... Qe6 $11 {remains equal.}) 15. Qg4+ $1 $16 Kc6 (15... Kd8 $16 16. Bg5 Qc6) 16. Qa4 $2 ({White has to play} 16. Nc3 $1 $18) 16... Kd7 $1 $11 {[%cal Bc6d7,Bd7e8,Be8f7,Bf7f8,Bf8g7][%mdl 32] [#]} 17. Nd6+ $1 b5 $1 18. Nxb5 {[%cal Ob5d6] Nd6+! would now be deadly.} Qc6 $132 {[%mdl 2048] Black is not holding back} 19. Qg4+ f5 20. Rxe7+ $1 Bxe7 (20... Kxe7 21. Bg5+ Kf7 22. Qxf5+ Kg8 23. Nc7 d4+ 24. Kg1) 21. Qxf5+ Ke8 22. Bg5 $1 d4+ (22... Qxb5 $2 {too greedy.} 23. Re1 Qd7 24. Rxe7+ Qxe7 25. Bxe7 Kxe7 26. Qe5+ (26. Qxd5 Rhc8 $18) 26... Kf7 27. Qxd5+ Kf6 28. Qxc5 $18) 23. Kg1 {[%cal Oa1e1] White wants to mate with Re1! Really sharp!} Bf6 $1 (23... axb5 $2 24. Re1 Ra7 25. Re6 $18) 24. Bxf6 gxf6 25. Re1+ Kf7 {[%cal Oh7h5]} 26. Qh5+ Kf8 27. Na3 {Black must now prevent Nc4.} Re8 (27... Rg8 $11) 28. Rxe8+ $14 Qxe8 29. Qxc5+ {[%mdl 4096] Endgame. KQR-KQN} Kg7 30. Qa7+ ({White should try} 30. Qxd4 $16 {Nc4 is the strong threat.} Qc8 31. Nc4) 30... Qf7 $11 31. Qxd4 {And now Nc4 would win.} Re8 $1 32. Qg4+ Kh8 $1 {Hoping for ...Re1+.} 33. Qf3 Kg7 34. b3 Qe6 ({Better is} 34... Re1+ $1 $11 35. Kg2 Rc1) 35. Kg2 $14 Qe2 36. Qxe2 Rxe2 $16 {KR-KN} 37. Kf3 (37. Kf1 $16 Re8 (37... Rd2 38. Ke1 $14) 38. Nc4) 37... Re1 $14 38. Nc4 Kf7 39. Ne3 Ke6 40. Kf4 Re2 {[#]} (40... a5 $14) 41. f3 $1 $16 Kd6 42. h4 Kc5 {[#]} 43. Ke4 (43. g4 $1 $16) 43... Kb4 (43... f5+ $1 $14 44. Kf4 (44. Kxf5 $2 {is the wrong capture.} Rxe3 45. f4 Rxg3 $19) 44... Kb4) 44. f4 ({White should play} 44. Kd3 $16 Rf2 45. f4) 44... Kc3 $11 {Strongly threatening ...Kd2.} 45. Kf3 Re1 {[%mdl 8192]} (45... Kd2 $11 46. Nd5 f5) 46. Nd5+ $18 Kxc2 47. Nb4+ $2 (47. Nxf6 $18 Re7 48. g4) 47... Kd2 $11 48. Nxa6 f5 {aiming for ...Rf1+.} 49. Nb4 Re3+ (49... Rf1+ $5 50. Kg2 Ke2 $17) 50. Kg2 {The position is equal.} Re2+ 51. Kf3 Re3+ 52. Kf2 {Weighted Error Value: White=0.27 (precise) /Black=0.25 (precise) .  Loses game:     	---       	Black=1      Missed win:     	White=2     	---        Mistake:       	White=4     	Black=6      Inaccurate:     	White=3     	Black=5      OK:         	White=19    	Black=14     Best:        	White=5     	Black=5      Strong:       	White=4     	Black=6} 1/2-1/2

[Event "45th FIDE Olympiad 2024"]
[Site "Budapest"]
[Date "2024.09.16"]
[Round "6.139"]
[White "Ilkhomi, Jaloliddin"]
[Black "Sousa, Andre Ventura"]
[Result "1/2-1/2"]
[ECO "E04"]
[WhiteElo "2227"]
[BlackElo "2403"]
[Annotator "TA"]
[PlyCount "112"]
[EventDate "2024.09.05"]
[EventType "team-tourn"]
[EventCountry "HUN"]
[SourceTitle "playchess.com"]
[Source "ChessBase"]
[SourceQuality "1"]
[WhiteTeam "Tajikistan"]
[BlackTeam "Portugal"]
[WhiteTeamCountry "TJK"]
[BlackTeamCountry "POR"]
[TimeControl "40/5400+30:1800+30"]

{[%evp 34,112,0,-6,-6,0,0,-4,17,0,3,5,15,-6,-10,-14,-13,-22,-16,-66,-68,-139,-77,-62,-61,-62,-66,-68,-68,-276,-276,-231,-188,-164,-177,-165,-82,-159,-48,-45,-45,-45,-52,-42,0,0,0,0,0,0,0,0,0,0,0,0,0,0,0,0,0,0,0,0,0,0,0,0,0,0,0,0,0,0,0,0,0,0,0,0,0]} 1. Nf3 Nf6 2. c4 e6 3. g3 d5 4. Bg2 dxc4 5. Qa4+ Bd7 6. Qxc4 c5 7. d4 Nc6 8. O-O b5 9. Qd3 c4 10. Qc2 {E04: Open Catalan: 5 Nf3.} Rc8 11. Bg5 Be7 12. Rd1 O-O 13. Nc3 b4 $146 ({Predecessor:} 13... Qb6 14. d5 Nb4 15. Qd2 Nbxd5 16. Ne5 Rfd8 17. Bxd5 exd5 18. Bxf6 Qxf6 19. Nxd7 Rxd7 20. Nxd5 {0-1 Kokje,J (2232)-Minko,D (2011) Hoogeveen op 22nd 2018 (8)}) 14. d5 Nxd5 15. Nxd5 Bxg5 16. Nxg5 Qxg5 17. Ne3 Nb8 18. Nxc4 Bb5 19. b3 a5 20. Rac1 Nd7 21. Qb2 Bxc4 22. Rxd7 Bb5 23. Rxc8 Rxc8 24. Rd2 Qc5 25. Bf3 Qc3 26. Kg2 (26. Bb7 $11 Qxb2 27. Rxb2) 26... f5 $15 27. e4 (27. e3 $15) 27... Bc6 (27... Bf1+ $142 $1 28. Kxf1 Qxf3) 28. Qxc3 $17 bxc3 29. Rc2 $1 fxe4 (29... Bxe4 30. Bxe4 fxe4 31. f3 $11) 30. Be2 Bd5 31. Kg1 $2 ({White should play} 31. Kf1 $15) 31... a4 $1 $19 32. bxa4 Bxa2 33. a5 (33. Rxa2 c2) 33... Bb3 34. Rc1 {[#]} Kf7 (34... c2 $1 $19 {and Black stays clearly on top. Threatens to win with ...Kf7.} 35. a6 Rd8) 35. a6 {[#]} ({White should try} 35. f3) 35... Kf6 (35... c2 $1 $17 {...Rd8 is the strong threat.} 36. f3 Bd5 37. fxe4 Bxe4) 36. Bd1 $1 $15 Bxd1 37. Rxd1 Ke5 38. a7 $1 e3 (38... c2 39. Rc1 Ra8 40. Kg2 $16) (38... Ra8 $5 39. Rd7 $8 c2 $11) 39. fxe3 Ke4 40. Rd4+ $1 Kxe3 41. Rc4 $1 Rxc4 42. a8=Q c2 43. Qa3+ Ke2 44. Qc1 e5 45. Kg2 Rc3 46. Qf1+ Ke3 47. Qf2+ Kd3 48. Qf3+ Kd4 49. Qf2+ Kc4 50. Qf7+ Kb4 51. Qb7+ (51. Qxg7 $2 c1=Q (51... c1=R 52. Qxe5 R1c2+ 53. Kh3 $16) 52. Qe7+ Rc5 $19) 51... Ka3 52. Qa6+ (52. Qxg7 $2 c1=Q (52... c1=R 53. Qxe5 R1c2+ 54. Kh3 $14) 53. Qa7+ Kb2 54. Qb7+ Rb3 $19) 52... Kb2 53. Qb5+ Ka2 54. Qa4+ (54. Qxe5 $2 c1=Q (54... c1=R 55. Qa5+ Kb2 56. Kh3 $11) 55. Qe6+ Ka1 $19) 54... Kb2 55. Qb5+ Ka2 56. Qa4+ (56. Qxe5 c1=Q (56... c1=R 57. Qxg7 Rc7 58. Qg8+ Ka3 59. Qf8+ R1c5 60. Kh3 $16) 57. Qd5+ Kb1 58. Qb7+ Qb2+ 59. Qxb2+ Kxb2 60. Kh3 Rc2 61. Kg4 Rf2 (61... Rxh2 {gets mated.} 62. Kf3 Kc3 63. Ke4 Rh5 64. g4 Rb5 65. g5 g6 66. Ke3 Re5+ 67. Kf4 Re2 68. Kg3 Kd2 69. Kh3 Ke3 70. Kg3 Rf2 71. Kg4 Rg2+ 72. Kh4 Kf4 73. Kh3 Ra2 74. Kh4 Rh2#) 62. h4 Kc3 63. Kh5 Kd3 (63... Rf5+ 64. Kg4 g6 65. h5 Kd2 66. Kh4 Ke2 67. hxg6 hxg6 68. g4 Rd5 69. Kg3 g5 70. Kg2 Re5 71. Kh2 Kf2 72. Kh3 Re7 73. Kh2 Rh7#) 64. Kg5 Ke4 65. h5 Rf5+ 66. Kg4 h6 67. Kh4 Rg5 68. Kh3 Kf3 (68... Rxh5+ 69. Kg2 Ke3 70. g4 Rh4 71. g5 Rg4+ 72. Kh3 Rxg5 73. Kh2 Kf3 74. Kh1 Kf2 75. Kh2 Rh5#) 69. g4 Rxg4 70. Kh2 Rh4+ 71. Kg1 Rxh5 72. Kf1 Rh1#) 56... Kb2 1/2-1/2